fUSD/lending_fUSD_20250322
["ID","MTS","AMOUNT","RATE_DAILY","PERIOD"]
[356543167,1742637069045,-591.13,0.00047945,120]
[356543168,1742637069055,-500.0,0.00047945,60]
[356543169,1742637069064,-500.0,0.00047945,120]
[356543170,1742637069074,-500.0,0.00047945,120]
[356543171,1742637069084,-611.96,0.00047945,120]
[356543172,1742637069094,-500.0,0.00047945,120]
[356543173,1742637069104,-645.8,0.00047945,120]
[356543174,1742637069114,-529.2,0.00047945,120]
[356543175,1742637069125,-500.0,0.00047945,120]
[356543176,1742637069135,-601.81,0.00047945,120]
[356543177,1742637069144,-641.64,0.00047945,120]
[356543178,1742637069155,-640.55,0.00047945,120]
[356543179,1742637069165,-500.0,0.00047945,120]
[356543180,1742637069175,-500.0,0.00047945,120]
[356543181,1742637069186,-627.71,0.00047945,120]
[356543182,1742637069196,-701.19,0.00047945,120]
[356543183,1742637069206,-1353.99,0.00047945,120]
[356543184,1742637069215,-500.0,0.00047945,120]
[356543185,1742637069225,-500.0,0.00047945,120]
[356543186,1742637069235,-500.0,0.00047945,120]
[356543187,1742637069245,-500.0,0.00047945,120]
[356543188,1742637069254,-658.79,0.00047945,120]
[356543189,1742637069264,-500.0,0.00047945,120]
[356543190,1742637069274,-500.0,0.00047945,120]
[356543191,1742637069285,-1518.81,0.00047945,120]
[356543192,1742637069295,-1579.16,0.00047945,120]
[356543193,1742637069305,-359.22388881,0.00047945,120]
[356543194,1742637069314,-500.0,0.00047945,120]
[356543195,1742637069325,-842.72,0.00047945,120]
[356543196,1742637069338,-500.0,0.00047945,120]
[356543197,1742637069348,-548.06939767,0.00047945,120]
[356543198,1742637069359,-1920.4,0.00047945,120]
[356543199,1742637069368,-500.0,0.00047945,120]
[356543200,1742637069379,-500.0,0.00047945,120]
[356543201,1742637069389,-500.0,0.00047945,120]
[356543202,1742637069399,-500.0,0.00047945,120]
[356543203,1742637069409,-5245.81,0.00047945,120]
[356543204,1742637069420,-500.0,0.00047945,120]
[356543205,1742637069430,-500.0,0.00047945,120]
[356543206,1742637069440,-2131.02,0.00047945,120]
[356543207,1742637069451,-500.0,0.00047945,120]
[356543208,1742637069461,-983.72,0.00047945,120]
[356543209,1742637069471,-500.0,0.00047945,120]
[356543210,1742637069481,-500.0,0.00047945,120]
[356543211,1742637069491,-500.0,0.00047945,120]
[356543212,1742637069501,-1445.99,0.00047945,120]
[356543213,1742637069511,-585.87,0.00047945,120]
[356543214,1742637069521,-689.75,0.00047945,120]
[356543215,1742637069530,-500.0,0.00047945,120]
[356543216,1742637069540,-500.0,0.00047945,120]
[356543217,1742637069550,-846.6,0.00047945,120]
[356543218,1742637069560,-587.36,0.00047945,120]
[356543219,1742637069570,-635.78,0.00047945,120]
[356543220,1742637069580,-1413.44,0.00047945,120]
[356543221,1742637069590,-4235.9,0.00047945,2]
[356543222,1742637069600,-500.0,0.00047945,120]
[356543223,1742637069610,-500.0,0.00047945,120]
[356543224,1742637069620,-500.0,0.00047945,120]
[356543225,1742637069631,-1454.51,0.00047945,120]
[356543226,1742637069640,-500.0,0.00047945,120]
[356543227,1742637069650,-500.0,0.00047945,120]
[356543228,1742637069660,-500.0,0.00047945,120]
[356543229,1742637069670,-970.54,0.00047945,120]
[356543230,1742637069680,-586.12,0.00047945,120]
[356543231,1742637069690,-500.0,0.00047945,120]
[356543232,1742637069700,-635.48,0.00047945,120]
[356543233,1742637069709,-996.39,0.00047945,120]
[356543234,1742637069719,-647.73,0.00047945,120]
[356543235,1742637069729,-1824.31,0.00047945,120]
[356543236,1742637069739,-500.0,0.00047945,120]
[356543237,1742637069749,-833.59,0.00047945,120]
[356543238,1742637069758,-500.0,0.00047945,120]
[356543239,1742637069767,-809.31,0.00047945,120]
[356543240,1742637069777,-2000.27,0.00047945,120]
[356543241,1742637069787,-1128.13,0.00047945,120]
[356543242,1742637069799,-205.85,0.00047945,7]
[356543243,1742637069809,-2750.71,0.00047945,120]
[356543244,1742637069819,-500.0,0.00047945,120]
[356543245,1742637069829,-500.0,0.00047945,120]
[356543246,1742637069839,-500.0,0.00047945,120]
[356543247,1742637069849,-972.4,0.00047945,120]
[356543248,1742637069859,-912.87,0.00047945,120]
[356543249,1742637069870,-3375.17,0.00047945,120]
[356543250,1742637069880,-558.47,0.00047945,120]
[356543251,1742637069891,-1367.27,0.00047945,120]
[356543252,1742637069901,-743.38,0.00047945,120]
[356543253,1742637069911,-520.84,0.00047945,120]
[356543254,1742637069921,-500.0,0.00047945,120]
[356543255,1742637069931,-1219.57,0.00047945,120]
[356543256,1742637069940,-500.0,0.00047945,120]
[356543257,1742637069950,-2818.72,0.00047945,120]
[356543258,1742637069959,-500.0,0.00047945,120]
[356543259,1742637069969,-825.87,0.00047945,120]
[356543260,1742637069979,-500.0,0.00047945,120]
[356543261,1742637069988,-635.13,0.00047945,120]
[356543262,1742637069998,-606.96,0.00047945,120]
[356543263,1742637070008,-827.5,0.00047945,120]
[356543264,1742637070018,-666.85,0.00047945,120]
[356543265,1742637070028,-695.68,0.00047945,120]
[356543266,1742637070038,-500.0,0.00047945,120]
[356543267,1742637070047,-500.0,0.00047945,120]
[356543268,1742637070057,-1356.69,0.00047945,7]
[356543269,1742637070067,-1736.83,0.00047945,120]
[356543270,1742637070077,-913.27,0.00047945,120]
[356543271,1742637070086,-599.99,0.00047945,120]
[356543272,1742637070096,-500.0,0.00047945,120]
[356543273,1742637070106,-527.15,0.00047945,120]
[356543274,1742637070117,-500.0,0.00047945,120]
[356543275,1742637070126,-597.23,0.00047945,120]
[356543276,1742637070136,-501.82,0.00047945,120]
[356543277,1742637070146,-1106.0,0.00047945,120]
[356543278,1742637070156,-882.82,0.00047945,120]
[356543279,1742637070166,-500.0,0.00047945,120]
[356543280,1742637070177,-1127.56,0.00047945,120]
[356543281,1742637070187,-1089.93,0.00047945,7]
[356543282,1742637070197,-500.0,0.00047945,120]
[356543283,1742637070207,-502.2,0.00047945,120]
[356543284,1742637070217,-500.0,0.00047945,120]
[356543285,1742637070227,-1068.57,0.00047945,120]
[356543286,1742637070238,-1131.58,0.00047945,120]
[356543287,1742637070248,-529.97,0.00047945,120]
[356543288,1742637070258,-500.0,0.00047945,120]
[356543289,1742637070268,-559.18,0.00047945,120]
[356543290,1742637070278,-500.0,0.00047945,120]
[356543291,1742637070288,-1578.59,0.00047945,120]
[356543292,1742637070298,-5060.41,0.00047945,120]
[356543293,1742637070310,-500.0,0.00047945,120]
[356543294,1742637070320,-500.0,0.00047945,120]
[356543295,1742637070330,-938.19,0.00047945,120]
[356543296,1742637070342,-567.38,0.00047945,120]
[356543297,1742637070352,-617.69,0.00047945,120]
[356543298,1742637070362,-1439.24,0.00047945,120]
[356543299,1742637070372,-1288.21,0.00047945,120]
[356543300,1742637070383,-500.0,0.00047945,120]
[356543301,1742637070393,-3623.73,0.00047945,120]
[356543302,1742637070403,-1914.19,0.00047945,120]
[356543303,1742637070414,-500.0,0.00047945,120]
[356543304,1742637070424,-1583.29,0.00047945,120]
[356543305,1742637070435,-1724.46,0.00047945,120]
[356543306,1742637070444,-2003.91,0.00047945,100]
[356543307,1742637070455,-1585.84,0.00047945,120]
[356543308,1742637070464,-500.0,0.00047945,120]
[356543309,1742637070474,-2253.09,0.00047945,120]
[356543310,1742637070483,-500.0,0.00047945,120]
[356543311,1742637070493,-500.0,0.00047945,120]
[356543312,1742637070503,-645.37,0.00047945,120]
[356543313,1742637070512,-691.36,0.00047945,120]
[356543314,1742637070522,-817.6,0.00047945,120]
[356543315,1742637070531,-523.41,0.00047945,120]
[356543316,1742637070541,-1609.26,0.00047945,120]
[356543317,1742637070550,-1857.45,0.00047945,120]
[356543318,1742637070560,-1181.24,0.00047945,120]
[356543319,1742637070569,-592.73,0.00047945,120]
[356543320,1742637070579,-1111.56,0.00047945,120]
[356543321,1742637070588,-500.0,0.00047945,120]
[356543322,1742637070598,-500.0,0.00047945,120]
[356543323,1742637070607,-1095.08,0.00047945,120]
[356543324,1742637070616,-1041.52,0.00047945,120]
[356543325,1742637070626,-500.0,0.00047945,120]
[356543326,1742637070635,-624.9,0.00047945,120]
[356543327,1742637070644,-796.13,0.00047945,120]
[356543328,1742637070654,-500.0,0.00047945,120]
[356543329,1742637070663,-751.81,0.00047945,120]
[356543330,1742637070673,-722.59,0.00047945,120]
[356543331,1742637070682,-500.0,0.00047945,120]
[356543332,1742637070692,-554.28,0.00047945,120]
[356543333,1742637070702,-555.78,0.00047945,120]
[356543334,1742637070712,-500.0,0.00047945,120]
[356543335,1742637070721,-3273.79,0.00047945,120]
[356543336,1742637070730,-2930.96,0.00047945,120]
[356543337,1742637070740,-1052.7,0.00047945,120]
[356543338,1742637070938,-504.22,0.00047945,120]
[356543339,1742637070948,-500.0,0.00047945,120]
[356543340,1742637070958,-1485.55,0.00047945,120]
[356543341,1742637070967,-504.42,0.00047945,120]
[356543342,1742637070977,-500.0,0.00047945,120]
[356543343,1742637070986,-657.13,0.00047945,120]
[356543344,1742637070996,-1080.77,0.00047945,120]
[356543345,1742637071005,-500.0,0.00047945,120]
[356543346,1742637071014,-500.0,0.00047945,120]
[356543347,1742637071023,-517.31,0.00047945,120]
[356543348,1742637071032,-760.27,0.00047945,120]
[356543349,1742637071042,-899.53,0.00047945,120]
[356543350,1742637071051,-500.0,0.00047945,120]
[356543351,1742637071059,-500.0,0.00047945,120]
[356543352,1742637071069,-692.39,0.00047945,120]
[356543353,1742637071078,-500.0,0.00047945,120]
[356543354,1742637071088,-500.0,0.00047945,120]
[356543355,1742637071097,-555.67,0.00047945,120]
[356543356,1742637071106,-1026.62,0.00047945,120]
[356543357,1742637071115,-500.0,0.00047945,120]
[356543358,1742637071124,-1504.12,0.00047945,120]
[356543359,1742637071133,-655.7,0.00047945,120]
[356543360,1742637071142,-500.0,0.00047945,120]
[356543361,1742637071152,-668.14,0.00047945,120]
[356543362,1742637071161,-500.0,0.00047945,20]
[356543363,1742637071170,-529.96,0.00047945,120]
[356543364,1742637071180,-56672.48,0.00047945,120]
[356543365,1742637071190,-1785.62,0.00047945,120]
[356543366,1742637071199,-500.0,0.00047945,120]
[356543367,1742637071208,-874.3,0.00047945,120]
[356543368,1742637071218,-500.0,0.00047945,120]
[356543369,1742637071228,-892.9,0.00047945,120]
[356543370,1742637071238,-507.98,0.00047945,120]
[356543371,1742637071247,-767.43,0.00047945,120]
[356543372,1742637071257,-818.49,0.00047945,120]
[356543373,1742637071266,-574.58,0.00047945,120]
[356543374,1742637071276,-622.98,0.00047945,120]
[356543375,1742637071286,-1187.99,0.00047945,120]
[356543376,1742637071295,-500.0,0.00047945,120]
[356543377,1742637071305,-594.34,0.00047945,120]
[356543378,1742637071314,-500.0,0.00047945,120]
[356543379,1742637071323,-724.76,0.00047945,120]
[356543380,1742637071335,-500.0,0.00047945,120]
[356543381,1742637071344,-554.79,0.00047945,120]
[356543382,1742637071354,-500.0,0.00047945,120]
[356543383,1742637071363,-864.88,0.00047945,120]
[356543384,1742637071372,-664.62,0.00047945,120]
[356543385,1742637071382,-870.55,0.00047945,120]
[356543386,1742637071391,-500.0,0.00047945,120]
[356543387,1742637071401,-3152.52,0.00047945,120]
[356543388,1742637071410,-434.03605495,0.00047945,120]
[356543389,1742637071419,-1001.37,0.00047945,120]
[356543390,1742637071429,-151.78,0.00047945,2]
[356543391,1742637071439,-3216.71248294,0.00047989,120]
[356543392,1742637071448,-3216.71248294,0.00047989,120]
[356543393,1742637071459,-535.28511817,0.00047994,40]
[356543394,1742637071468,-983.74939496,0.00047999,120]
[356543395,1742637071478,-644.01,0.00047999,120]
[356543396,1742637071487,-644.01,0.00047999,120]
[356543397,1742637071496,-644.01,0.00047999,120]
[356543398,1742637071506,-2000.0,0.00048,60]
[356543399,1742637071515,-450000.0,0.00048,120]
[356543400,1742637071524,-500.0,0.00048,120]
[356543401,1742637071534,-500.0,0.00048,15]
[356543402,1742637071545,-54259.29387188,0.00048,120]
[356543403,1742637071556,-200.0,0.00048,120]
[356543404,1742637071566,-254.1090175,0.00048,120]
[356543405,1742637071575,-206.59683735,0.00048,30]
[356543406,1742637071585,-223.68815338,0.00048,30]
[356543407,1742637071594,-57084.90040432,0.00048053,15]
[356543408,1742637071603,-500.0,0.00048218,120]
[356543409,1742637071612,-644.01,0.00048218,120]
[356543410,1742637071622,-904.785999,0.00048219,120]
[356543411,1742637071631,-733.844647,0.00048219,120]
[356543412,1742637071641,-500.0,0.00048219,120]
[356543413,1742637071651,-500.0,0.00048219,120]
[356543414,1742637071661,-500.0,0.00048219,120]
[356543415,1742637071670,-739.16,0.00048219,120]
[356543416,1742637071680,-500.0,0.00048219,120]
[356543417,1742637071689,-500.0,0.00048219,120]
[356543418,1742637071698,-500.0,0.00048219,120]
[356543419,1742637071708,-500.0,0.00048219,120]
[356543420,1742637071717,-950.82,0.00048219,120]
[356543421,1742637071727,-500.0,0.00048219,120]
[356543422,1742637071736,-517.63,0.00048219,120]
[356543423,1742637071746,-500.0,0.00048219,120]
[356543424,1742637071755,-1049.72,0.00048219,120]
[356543425,1742637071764,-653.69,0.00048219,120]
[356543426,1742637071774,-907.89,0.00048219,120]
[356543427,1742637071783,-600.62,0.00048219,120]
[356543428,1742637071792,-500.0,0.00048219,120]
[356543429,1742637071802,-500.0,0.00048219,120]
[356543430,1742637071811,-500.0,0.00048219,120]
[356543431,1742637071821,-500.0,0.00048219,120]
[356543432,1742637071830,-500.0,0.00048219,120]
[356543433,1742637071840,-500.0,0.00048219,120]
[356543434,1742637071849,-500.0,0.00048219,120]
[356543435,1742637071859,-500.0,0.00048219,120]
[356543436,1742637071868,-500.0,0.00048219,120]
[356543437,1742637071877,-500.0,0.00048219,120]
[356543438,1742637071887,-500.0,0.00048219,120]
[356543439,1742637071896,-501.22,0.00048219,120]
[356543440,1742637071906,-500.0,0.00048219,120]
[356543441,1742637071915,-500.0,0.00048219,120]
[356543442,1742637071924,-500.0,0.00048219,120]
[356543443,1742637071934,-761.07,0.00048219,120]
[356543444,1742637071943,-956.79,0.00048219,120]
[356543445,1742637071952,-500.0,0.00048219,120]
[356543446,1742637071962,-500.0,0.00048219,120]
[356543447,1742637071971,-500.0,0.00048219,120]
[356543448,1742637071980,-963.36,0.00048219,60]
[356543449,1742637071990,-782.21,0.00048219,120]
[356543450,1742637071999,-500.0,0.00048219,120]
[356543451,1742637072009,-584.06,0.00048219,120]
[356543452,1742637072018,-382.22648683,0.00048219,120]
[356543453,1742637072027,-500.0,0.00048219,2]
[356543454,1742637072036,-673.59,0.00048219,120]
[356543455,1742637072046,-500.0,0.00048219,120]
[356543456,1742637072055,-502.51,0.00048219,120]
[356543457,1742637072065,-500.0,0.00048219,120]
[356543458,1742637072074,-1473.31,0.00048219,120]
[356543459,1742637072083,-500.0,0.00048219,120]
[356543460,1742637072094,-436.93791397,0.00048219,120]
[356543461,1742637072104,-500.0,0.00048219,120]
[356543462,1742637072114,-751.46,0.00048219,120]
[356543463,1742637072123,-1642.39,0.00048219,120]
[356543464,1742637072132,-654.04,0.00048219,120]
[356543465,1742637072143,-674.52,0.00048219,120]
[356543466,1742637072152,-520.54,0.00048219,120]
[356543467,1742637072162,-500.0,0.00048219,120]
[356543468,1742637072171,-500.0,0.00048219,120]
[356543469,1742637072180,-781.34,0.00048219,120]
[356543470,1742637072190,-500.0,0.00048219,120]
[356543471,1742637072199,-532.16,0.00048219,120]
[356543472,1742637072208,-500.0,0.00048219,120]
[356543473,1742637072217,-500.0,0.00048219,120]
[356543474,1742637072227,-601.78,0.00048219,120]
[356543475,1742637072236,-500.0,0.00048219,120]
[356543476,1742637072245,-691.76,0.00048219,120]
[356543477,1742637072254,-500.0,0.00048219,120]
[356543478,1742637072263,-802.29,0.00048219,120]
[356543479,1742637072273,-500.0,0.00048219,120]
[356543480,1742637072283,-500.0,0.00048219,120]
[356543481,1742637072292,-580.53,0.00048219,120]
[356543482,1742637072302,-2210.41,0.00048219,120]
[356543483,1742637072312,-904.56,0.00048219,120]
[356543484,1742637072321,-500.0,0.00048219,120]
[356543485,1742637072332,-500.0,0.00048219,120]
[356543486,1742637072346,-793.91,0.00048219,120]
[356543487,1742637072360,-706.55,0.00048219,120]
[356543488,1742637072370,-834.3,0.00048219,120]
[356543489,1742637072380,-235.1748991,0.00048219,120]
[356543490,1742637072390,-671.78,0.00048219,120]
[356543491,1742637072400,-354.90293485,0.00048219,120]
[356543492,1742637072413,-500.0,0.00048219,120]
[356543493,1742637072422,-500.0,0.00048219,120]
[356543494,1742637072432,-1807.75,0.00048219,120]
[356543495,1742637072442,-252.81653474,0.00048219,120]
[356543496,1742637072451,-500.0,0.00048219,120]
[356543497,1742637072461,-842.88,0.00048219,120]
[356543498,1742637072470,-500.0,0.00048219,120]
[356543499,1742637072480,-500.0,0.00048219,120]
[356543500,1742637072492,-500.0,0.00048219,120]
[356543501,1742637072502,-350.0,0.00048219,120]
[356543502,1742637072511,-965.16,0.00048219,120]
[356543503,1742637072520,-591.6,0.00048219,120]
[356543504,1742637072530,-1371.05,0.00048219,120]
[356543505,1742637072539,-1325.26,0.00048219,120]
[356543506,1742637072549,-558.56,0.00048219,120]
[356543507,1742637072560,-874.61,0.00048219,120]
[356543508,1742637072569,-902.88,0.00048219,120]
[356543509,1742637072579,-509.55,0.00048219,120]
[356543510,1742637072589,-500.0,0.00048219,120]
[356543511,1742637072599,-500.0,0.00048219,120]
[356543512,1742637072608,-500.0,0.00048219,120]
[356543513,1742637072617,-937.33,0.00048219,120]
[356543514,1742637072627,-500.0,0.00048219,120]
[356543515,1742637072636,-500.0,0.00048219,120]
[356543516,1742637072646,-1062.3,0.00048219,120]
[356543517,1742637072657,-600.78,0.00048219,120]
[356543518,1742637072667,-664.64,0.00048219,120]
[356543519,1742637072677,-668.71,0.00048219,120]
[356543520,1742637072687,-564.64,0.00048219,120]
[356543521,1742637072696,-1070.64,0.00048219,120]
[356543522,1742637072706,-979.48,0.00048219,120]
[356543523,1742637072715,-800.83,0.00048219,120]
[356543524,1742637072725,-500.0,0.00048219,120]
[356543525,1742637072734,-698.39,0.00048219,120]
[356543526,1742637072744,-500.0,0.00048219,120]
[356543527,1742637072753,-680.79,0.00048219,120]
[356543528,1742637072763,-514.68,0.00048219,120]
[356543529,1742637072772,-536.4,0.00048219,120]
[356543530,1742637072782,-500.0,0.00048219,120]
[356543531,1742637072791,-500.0,0.00048219,120]
[356543532,1742637072800,-500.0,0.00048219,120]
[356543533,1742637072810,-500.0,0.00048219,120]
[356543534,1742637072819,-500.0,0.00048219,120]
[356543535,1742637072829,-661.88,0.00048219,120]
[356543536,1742637072838,-500.0,0.00048219,120]
[356543537,1742637072848,-500.0,0.00048219,120]
[356543538,1742637072858,-500.0,0.00048219,120]
[356543539,1742637072868,-500.0,0.00048219,120]
[356543540,1742637072876,-730.9,0.00048219,120]
[356543541,1742637072886,-1058.49,0.00048219,120]
[356543542,1742637072895,-500.0,0.00048219,120]
[356543543,1742637072908,-1233.22,0.00048219,120]
[356543544,1742637072918,-1327.63,0.00048219,120]
[356543545,1742637072927,-520.32,0.00048219,120]
[356543546,1742637072936,-896.4,0.00048219,120]
[356543547,1742637072945,-1347.94,0.00048219,120]
[356543548,1742637072954,-597.81,0.00048219,120]
[356543549,1742637072963,-500.0,0.00048219,120]
[356543550,1742637072972,-788.73,0.00048219,120]
[356543551,1742637072982,-500.0,0.00048219,120]
[356543552,1742637072991,-500.0,0.00048219,120]
[356543553,1742637073000,-2023.49,0.00048219,120]
[356543554,1742637073009,-625.69,0.00048219,120]
[356543555,1742637073018,-1415.42,0.00048219,120]
[356543556,1742637073027,-556.5,0.00048219,120]
[356543557,1742637073036,-839.81,0.00048219,120]
[356543558,1742637073045,-500.0,0.00048219,120]
[356543559,1742637073056,-1500.0,0.00048219,120]
[356543560,1742637073065,-813.54,0.00048219,120]
[356543561,1742637073074,-570.18,0.00048219,120]
[356543562,1742637073083,-500.0,0.00048219,120]
[356543563,1742637073093,-500.0,0.00048219,120]
[356543564,1742637073102,-500.0,0.00048219,120]
[356543565,1742637073111,-500.0,0.00048219,120]
[356543566,1742637073120,-621.41,0.00048219,120]
[356543567,1742637073129,-300.0,0.00048219,120]
[356543568,1742637073139,-713.81,0.00048219,120]
[356543569,1742637073147,-500.0,0.00048219,120]
[356543570,1742637073159,-500.0,0.00048219,120]
[356543571,1742637073169,-1159.44,0.00048219,10]
[356543572,1742637073178,-639.03,0.00048219,120]
[356543573,1742637073249,-500.0,0.00048219,120]
[356543574,1742637073259,-521.66,0.00048219,120]
[356543575,1742637073269,-1837.38,0.00048219,120]
[356543576,1742637073278,-500.0,0.00048219,120]
[356543577,1742637073287,-500.0,0.00048219,120]
[356543578,1742637073296,-500.0,0.00048219,120]
[356543579,1742637073305,-500.0,0.00048219,120]
[356543580,1742637073314,-500.0,0.00048219,120]
[356543581,1742637073324,-500.0,0.00048219,120]
[356543582,1742637073334,-500.0,0.00048219,120]
[356543583,1742637073344,-872.68,0.00048219,120]
[356543584,1742637073353,-500.0,0.00048219,120]
[356543585,1742637073362,-500.0,0.00048219,120]
[356543586,1742637073372,-815.59,0.00048219,120]
[356543587,1742637073381,-500.0,0.00048219,120]
[356543588,1742637073390,-564.59,0.00048219,120]
[356543589,1742637073399,-500.0,0.00048219,120]
[356543590,1742637073411,-500.0,0.00048219,120]
[356543591,1742637073420,-500.0,0.00048219,120]
[356543592,1742637073429,-629.6,0.00048219,120]
[356543593,1742637073438,-1219.87,0.00048219,120]
[356543594,1742637073447,-511.1,0.00048219,120]
[356543595,1742637073456,-500.0,0.00048219,120]
[356543596,1742637073466,-500.0,0.00048219,120]
[356543597,1742637073475,-500.0,0.00048219,120]
[356543598,1742637073484,-500.0,0.00048219,120]
[356543599,1742637073494,-973.06,0.00048219,120]
[356543600,1742637073503,-500.0,0.00048219,120]
[356543601,1742637073513,-624.39,0.00048219,120]
[356543602,1742637073521,-500.0,0.00048219,120]
[356543603,1742637073530,-1923.34,0.00048219,120]
[356543604,1742637073540,-500.0,0.00048219,120]
[356543605,1742637073550,-820.19,0.00048219,120]
[356543606,1742637073559,-564.23,0.00048219,120]
[356543607,1742637073568,-665.21,0.00048219,120]
[356543608,1742637073577,-500.0,0.00048219,120]
[356543609,1742637073587,-500.0,0.00048219,120]
[356543610,1742637073596,-1241.85,0.00048219,120]
[356543611,1742637073606,-500.0,0.00048219,120]
[356543612,1742637073615,-500.0,0.00048219,120]
[356543613,1742637073624,-619.76,0.00048219,120]
[356543614,1742637073633,-500.0,0.00048219,120]
[356543615,1742637073642,-500.0,0.00048219,120]
[356543616,1742637073651,-591.13,0.00048219,120]
[356543617,1742637073661,-500.0,0.00048219,60]
[356543618,1742637073671,-500.0,0.00048219,120]
[356543619,1742637073680,-500.0,0.00048219,120]
[356543620,1742637073689,-611.96,0.00048219,120]
[356543621,1742637073698,-500.0,0.00048219,120]
[356543622,1742637073707,-645.8,0.00048219,120]
[356543623,1742637073716,-529.2,0.00048219,120]
[356543624,1742637073725,-500.0,0.00048219,120]
[356543625,1742637073735,-601.81,0.00048219,120]
[356543626,1742637073744,-641.64,0.00048219,120]
[356543627,1742637073753,-640.55,0.00048219,120]
[356543628,1742637073762,-500.0,0.00048219,120]
[356543629,1742637073771,-500.0,0.00048219,120]
[356543630,1742637073780,-627.71,0.00048219,120]
[356543631,1742637073790,-701.19,0.00048219,120]
[356543632,1742637073799,-1353.99,0.00048219,120]
[356543633,1742637073808,-500.0,0.00048219,120]
[356543634,1742637073817,-500.0,0.00048219,120]
[356543635,1742637073826,-500.0,0.00048219,120]
[356543636,1742637073835,-497.23501659,0.00048219,120]
[356543637,1742637073845,-658.79,0.00048219,120]
[356543638,1742637073854,-431.67827144,0.00048219,120]
[356543639,1742637073864,-500.0,0.00048219,120]
[356543640,1742637073873,-1518.81,0.00048219,120]
[356543641,1742637073882,-1579.16,0.00048219,120]
[356543642,1742637073891,-404.75257708,0.00048219,120]
[356543643,1742637073902,-842.72,0.00048219,120]
[356543644,1742637073914,-500.0,0.00048219,120]
[356543645,1742637073923,-1920.4,0.00048219,120]
[356543646,1742637073931,-500.0,0.00048219,120]
[356543647,1742637073941,-500.0,0.00048219,120]
[356543648,1742637073950,-500.0,0.00048219,120]
[356543649,1742637073959,-389.83113645,0.00048219,120]
[356543650,1742637073968,-5245.81,0.00048219,120]
[356543651,1742637073978,-500.0,0.00048219,120]
[356543652,1742637073988,-321.24987432,0.00048219,120]
[356543653,1742637073997,-2131.02,0.00048219,120]
[356543654,1742637074006,-500.0,0.00048219,120]
[356543655,1742637074015,-983.72,0.00048219,120]
[356543656,1742637074024,-500.0,0.00048219,120]
[356543657,1742637074034,-500.0,0.00048219,120]
[356543658,1742637074043,-455.56361271,0.00048219,120]
[356543659,1742637074051,-1445.99,0.00048219,120]
[356543660,1742637074061,-585.87,0.00048219,120]
[356543661,1742637074070,-689.75,0.00048219,120]
[356543662,1742637074080,-500.0,0.00048219,120]
[356543663,1742637074089,-500.0,0.00048219,120]
[356543664,1742637074099,-846.6,0.00048219,120]
[356543665,1742637074109,-587.36,0.00048219,120]
[356543666,1742637074119,-635.78,0.00048219,120]